bitfinex/quotes_ETHUSD_20240603
["timestamp","ask_amount","ask_price","bid_price","bid_amount"]
[1717451014488,2.64923,3774.7,3774.6,0.92062936]
[1717451014700,2.64923,3774.7,3774.6,0.644]
[1717451014986,2.64923,3774.7,3774.6,1.56462936]
[1717451015190,2.64923,3774.7,3774.6,0.92062936]
[1717451015387,2.64923,3774.7,3774.6,0.644]
[1717451015565,2.64923,3774.7,3774.6,1.56462936]
[1717451016250,2.64923,3774.7,3774.6,1.87050443]
[1717451018587,2.69896428,3774.7,3774.6,1.87050443]
[1717451021497,2.69896428,3774.7,3774.6,1.56462936]
[1717451021860,2.69896428,3774.7,3774.6,0.644]
[1717451022557,2.69896428,3774.7,3774.6,1.5646778]
[1717451024173,2.69896428,3774.7,3774.6,3.9017778]
[1717451024572,2.69896428,3774.7,3774.6,5.28272185]
[1717451024759,0.04973428,3774.7,3774.6,6.099684]
[1717451024954,2.64901,3775.0,3774.6,6.099684]
[1717451025171,2.64901,3775.0,3774.9,0.644]
[1717451025718,2.64901,3775.0,3774.9,1.5646778]
[1717451027419,2.64901,3775.0,3774.9,1.56460167]
[1717451027804,2.64901,3775.0,3774.9,0.92060167]
[1717451027969,2.64901,3775.0,3774.9,0.644]
[1717451029480,2.64901,3775.0,3774.9,1.56459405]
[1717451029682,2.64901,3775.0,3774.9,1.77654542]
[1717451030018,2.64901,3775.0,3774.9,0.85595137]
[1717451030708,2.64901,3775.0,3774.6,0.5549196]
[1717451030907,2.64901,3775.0,3774.9,0.644]
[1717451033414,2.69840735,3775.0,3774.9,0.644]
[1717451034123,2.69840735,3775.0,3774.9,1.56461394]
[1717451040169,2.69840735,3775.0,3774.9,3.50044894]
[1717451040379,0.04939735,3775.0,3774.9,4.27899989]
[1717451040538,0.04939735,3775.0,3774.9,3.72408029]
[1717451040747,2.64878,3775.4,3774.9,3.72408029]
[1717451040748,2.64878,3775.4,3774.9,3.08008029]
[1717451040928,0.04952527,3775.0,3774.9,2.71466336]
[1717451041255,0.0496065,3775.0,3774.9,2.89838903]
[1717451041450,2.64878,3775.4,3774.9,4.55795992]
[1717451041662,2.64878,3775.4,3775.3,0.644]
[1717451042028,2.64878,3775.4,3775.3,1.56455379]
[1717451042236,2.64847,3775.8,3775.3,1.56455379]
[1717451042441,2.64847,3775.8,3775.1,0.55527312]
[1717451042687,2.2745,3775.5,3775.1,0.55527312]
[1717451042976,2.2745,3775.5,3775.4,0.644]
[1717451047453,2.64859,3775.6,3775.4,0.644]
[1717451048366,0.04981368,3775.5,3775.4,0.644]
[1717451050057,0.04981368,3775.5,3774.5,0.99900335]
[1717451050251,0.04981368,3775.5,3774.6,3.62249092]
[1717451050458,0.04981368,3775.5,3775.2,0.644]
[1717451050761,0.04981368,3775.5,3775.3,0.92053114]
[1717451051071,0.04981368,3775.5,3775.2,0.644]
[1717451051272,0.04981368,3775.5,3774.9,1.38073509]
[1717451051517,0.04981368,3775.5,3775.2,0.644]
[1717451052079,2.64872,3775.4,3775.2,0.644]
[1717451052523,0.04819255,3775.3,3775.2,0.644]
[1717451052947,0.04819255,3775.3,3775.2,1.56453587]
[1717451053601,0.04819255,3775.3,3775.2,0.644]
[1717451055054,0.04819255,3775.3,3775.2,1.56455947]
[1717451056819,0.04819255,3775.3,3775.2,0.644]
[1717451057969,0.04819255,3775.3,3775.2,1.56453589]
[1717451059260,2.64872,3775.4,3775.2,1.94235052]
[1717451059515,2.64872,3775.4,3775.3,0.92053589]
[1717451063342,2.69566035,3775.4,3775.3,0.92053589]
[1717451065900,4.92336,3775.2,3775.1,0.55527754]
[1717451066105,6.39366204,3775.2,3775.1,0.55527754]
[1717451066447,4.92378,3774.6,3774.3,0.55527754]
[1717451066627,4.92378,3774.6,3774.5,0.644]
[1717451066835,2.64942,3774.4,3774.2,0.55527754]
[1717451067150,2.64942,3774.4,3774.3,0.644]
[1717451067446,7.32,3775.2,3774.3,1.32126577]
[1717451067610,7.32,3775.2,3774.5,0.644]
[1717451067611,2.6493,3774.6,3774.5,0.644]
[1717451069043,2.6493,3774.6,3774.4,0.55527754]
[1717451069346,2.6493,3774.6,3774.5,0.644]
[1717451069719,2.2745,3775.1,3774.5,0.644]
[1717451070237,2.2745,3775.1,3774.4,0.55527754]
[1717451070444,0.95945,3775.0,3774.5,0.644]
[1717451071057,0.95945,3775.0,3774.3,0.55540282]
[1717451071266,0.95945,3775.0,3774.5,0.644]
[1717451071575,2.2745,3774.9,3774.4,0.644]
[1717451071755,2.2745,3774.9,3774.2,1.19940282]
[1717451071934,2.2745,3774.7,3774.2,0.644]
[1717451078081,2.2745,3774.7,3774.4,0.644]
[1717451078453,0.04615753,3774.6,3773.9,0.55540282]
[1717451078642,0.04615753,3774.6,3774.3,0.644]
[1717451082686,0.04615753,3774.6,3773.9,1.87666859]
[1717451082979,0.04615753,3774.6,3774.2,0.644]
[1717451087888,0.04615753,3774.6,3774.0,0.64279778]
[1717451088089,0.04615753,3774.6,3774.2,0.644]
[1717451091021,0.04615753,3774.6,3774.0,0.64279778]
[1717451091189,0.04615753,3774.6,3774.1,0.92073767]
[1717451091499,0.04615753,3774.6,3774.2,0.644]
[1717451092567,2.2745,3774.7,3774.2,0.644]
[1717451092868,0.04595602,3774.6,3774.2,0.644]
[1717451097609,0.04595602,3774.6,3774.5,0.644]
[1717451097964,7.32,3775.2,3774.5,1.56466281]
[1717451098170,7.32,3775.2,3774.3,1.87666859]
[1717451098456,0.04589919,3775.1,3774.8,0.644]
[1717451098968,0.04589919,3775.1,3774.3,1.87666859]
[1717451099169,2.2745,3775.0,3774.4,0.92063706]
[1717451099478,2.32047389,3775.0,3774.2,0.644]
[1717451099884,2.32047389,3775.0,3774.1,0.644]
[1717451099885,2.2745,3774.8,3774.1,0.644]
[1717451100114,0.04601571,3774.7,3774.1,0.644]
[1717451100714,0.04601571,3774.7,3773.9,0.55540282]
[1717451100901,0.04601571,3774.7,3774.2,0.644]
[1717451101249,0.04601571,3774.7,3773.9,1.87666859]
[1717451101417,0.04601571,3774.7,3774.2,0.644]
[1717451101919,2.2745,3774.6,3773.9,0.55540282]
[1717451102097,2.32049927,3774.6,3774.0,1.56478259]
[1717451102296,2.32049927,3774.6,3774.1,0.92078259]
[1717451102492,2.5525492,3774.6,3774.1,0.92078259]
[1717451102696,2.5525492,3774.6,3773.8,0.55540282]
[1717451102907,2.32049927,3774.6,3774.0,0.644]
[1717451105300,2.32049927,3774.6,3774.1,0.92078841]
[1717451107006,2.32049927,3774.6,3774.0,0.644]
[1717451107174,2.32049927,3774.6,3774.1,0.92078814]
[1717451109078,2.32049927,3774.6,3774.2,0.92078814]
[1717451109299,0.23204993,3774.5,3774.0,0.55540282]
[1717451109640,0.04559772,3774.4,3774.0,0.92080152]
[1717451110523,2.2745,3774.3,3774.0,0.92080152]
[1717451110851,2.32004787,3774.3,3773.7,0.55540282]
[1717451111153,2.2745,3774.1,3773.5,0.644]
[1717451111296,2.2745,3774.1,3773.6,0.92094111]
[1717451111499,0.04524641,3774.0,3773.6,0.92094111]
[1717451112032,0.04524641,3774.0,3773.4,0.55540282]
[1717451112232,0.04524641,3774.0,3773.4,0.92095028]
[1717451112470,0.25517512,3773.9,3773.4,0.92095028]
[1717451112825,0.04508536,3773.8,3773.4,0.92095028]
[1717451113624,2.2745,3773.7,3773.4,0.92095028]
[1717451113872,2.2745,3773.6,3773.0,0.55540282]
[1717451114175,2.2745,3773.4,3772.7,0.55540282]
[1717451114374,2.2745,3773.4,3772.6,0.644]
[1717451114664,0.04458981,3773.3,3772.6,0.644]
[1717451115032,0.04458981,3773.3,3772.4,0.55540282]
[1717451115033,0.30613465,3773.3,3772.4,0.55540282]
[1717451115233,2.2745,3773.2,3772.5,0.92116371]
[1717451115435,2.2745,3773.2,3772.0,0.55540282]
[1717451115639,0.04455692,3773.1,3772.3,0.644]
[1717451115957,2.2745,3773.0,3772.0,0.55540282]
[1717451116127,2.31903149,3773.0,3772.3,0.644]
[1717451116329,0.23190315,3772.9,3772.3,0.644]
[1717451116549,0.27641819,3772.9,3772.3,0.644]
[1717451117324,0.27641819,3772.9,3771.5,3.44790564]
[1717451117325,0.27641819,3772.9,3771.8,0.55540282]
[1717451117542,0.27641819,3772.9,3772.2,0.644]
[1717451117837,0.27641819,3772.9,3771.8,1.32126577]
[1717451118039,0.25509182,3772.8,3771.9,0.92126567]
[1717451118239,0.25509182,3772.8,3771.8,1.32126577]
[1717451118540,0.0443966,3772.7,3771.8,1.32126577]
[1717451118874,0.0443966,3772.7,3772.1,0.644]
[1717451119178,0.0443966,3772.7,3772.0,0.644]
[1717451119373,0.0443966,3772.7,3771.4,0.55540282]
[1717451119543,0.32498576,3772.7,3772.0,0.644]
[1717451122446,0.32498576,3772.7,3771.5,1.64625077]
[1717451122679,0.32498576,3772.7,3772.0,0.644]
[1717451122851,0.32498576,3772.7,3771.5,1.64625077]
[1717451123170,2.2745,3772.6,3772.0,0.644]
[1717451123373,2.2745,3772.6,3771.5,1.32126577]
[1717451123374,2.31855229,3772.6,3771.5,1.32126577]
[1717451123540,2.31855229,3772.6,3771.9,0.644]
[1717451125087,2.31855229,3772.6,3771.1,2.3371]
[1717451125257,2.31855229,3772.6,3771.9,0.644]
[1717451125439,0.29625523,3772.5,3771.9,0.644]
[1717451125866,0.043989,3772.4,3771.9,0.644]
[1717451127414,0.043989,3772.4,3771.2,1.32126577]
[1717451127614,0.043989,3772.4,3771.8,0.644]
[1717451128525,2.2745,3772.3,3771.2,1.32126577]
[1717451128698,2.58001266,3772.3,3771.5,0.644]
[1717451128900,2.58001266,3772.3,3771.7,0.644]
[1717451129379,2.58001266,3772.3,3771.5,0.644]
[1717451131184,2.58001266,3772.3,3771.6,0.644]
[1717451133745,2.58001266,3772.3,3771.2,1.32126577]
[1717451133952,2.58001266,3772.3,3771.5,0.644]
[1717451134248,0.25800127,3772.2,3771.5,0.644]
[1717451134680,0.04393706,3772.1,3771.5,0.644]
[1717451135545,2.2745,3772.0,3770.7,2.3371]
[1717451135757,2.3184206,3772.0,3771.4,0.644]
[1717451137478,2.3184206,3772.0,3771.3,0.644]
[1717451138090,2.60221023,3772.0,3770.8,1.32126577]
[1717451138292,2.60221023,3772.0,3771.3,0.644]
[1717451141557,3.0,3771.9,3770.4,1.382179]
[1717451141742,2.2745,3771.6,3770.5,1.96526577]
[1717451141970,3.86622987,3771.6,3770.5,1.96526577]
[1717451142308,2.20850124,3771.5,3770.5,1.96526577]
[1717451142881,0.04354071,3771.5,3770.5,1.96526577]
[1717451143310,0.68754071,3771.5,3770.5,1.32126577]
[1717451143517,0.45537706,3771.4,3770.5,1.96526577]
[1717451143676,0.45537706,3771.4,3770.5,0.644]
[1717451143876,0.04362155,3771.3,3770.5,0.644]
[1717451144080,0.04362155,3771.3,3769.8,2.789]
[1717451144081,0.04362155,3771.3,3769.9,2.3371]
[1717451144326,0.04362155,3771.3,3770.5,0.644]
[1717451146275,2.2745,3771.2,3770.5,0.644]
[1717451146688,0.04364847,3771.1,3770.5,0.644]
[1717451146893,0.04364847,3771.1,3770.6,0.644]
[1717451147696,0.04364847,3771.1,3770.0,1.32126577]
[1717451147896,0.04364847,3771.1,3770.6,0.644]
[1717451148701,0.04364847,3771.1,3770.1,0.64473658]
[1717451148901,0.04364847,3771.1,3770.6,0.644]
[1717451150613,0.04364847,3771.1,3770.5,0.644]
[1717451156912,0.04364847,3771.1,3770.1,0.64473658]
[1717451157130,0.04364847,3771.1,3770.4,0.644]
[1717451158221,0.23181485,3771.0,3770.1,1.32126577]
[1717451158530,0.04319921,3771.0,3770.5,0.644]
[1717451158874,2.2745,3771.2,3770.5,0.644]
[1717451159016,0.04317789,3770.9,3770.5,0.644]
[1717451159217,2.2745,3771.2,3770.5,0.644]
[1717451159430,0.04315464,3770.8,3770.5,0.644]
[1717451159617,2.2745,3771.2,3770.5,0.644]
[1717451159931,0.27298771,3771.1,3770.5,0.644]
[1717451160118,0.31618499,3771.1,3770.5,0.644]
[1717451162349,0.31618499,3771.1,3770.1,1.87666859]
[1717451162552,0.04319728,3771.1,3770.4,0.644]
[1717451164245,5.30432,3770.5,3770.4,0.644]
[1717451164452,4.92666,3770.5,3770.0,0.55540282]
[1717451164647,2.65233,3770.3,3770.1,1.56568874]
[1717451164972,2.31761889,3770.5,3769.7,4.59063097]
[1717451164973,2.65257,3770.0,3769.7,4.59063097]
[1717451165267,2.099521,3770.0,3769.9,0.644]
[1717451165418,2.65237,3770.2,3769.9,1.56574834]
[1717451165762,2.65237,3770.2,3770.1,0.644]
[1717451167083,4.92667,3770.5,3770.1,0.644]
[1717451167239,2.65217,3770.5,3770.4,0.644]
[1717451168386,2.69518259,3770.5,3770.4,0.644]
[1717451169564,2.69518259,3770.5,3770.2,0.644]
[1717451171771,2.69518259,3770.5,3769.9,2.3371]
[1717451171959,2.69518259,3770.5,3770.1,0.644]
[1717451172765,2.69518259,3770.5,3770.0,0.39955783]
[1717451172966,2.69518259,3770.5,3770.1,0.92170392]
[1717451173142,2.69518259,3770.5,3770.1,1.56570392]
[1717451173342,2.69518259,3770.5,3770.1,0.644]
[1717451174556,2.69518259,3770.5,3770.2,0.92170758]
[1717451177167,2.69518259,3770.5,3770.3,0.92170653]
[1717451177370,2.69518259,3770.5,3770.1,0.644]
[1717451177762,2.69518259,3770.5,3770.2,0.92170839]
[1717451180001,0.04301259,3770.5,3770.3,1.32126577]
[1717451180308,7.32,3771.0,3770.4,3.90281575]
[1717451180601,7.32,3771.0,3770.6,0.55560957]
[1717451180759,7.32,3771.0,3770.9,0.644]
[1717451181163,7.32,3771.0,3770.9,1.56571575]
[1717451183300,7.32,3771.0,3770.9,2.12132532]
[1717451183507,7.36273018,3771.0,3770.9,2.12132532]
[1717451183820,0.04273018,3771.0,3770.9,5.77969109]
[1717451183981,12.24583,3771.7,3770.9,8.54281806]
[1717451183982,9.97133,3771.7,3770.9,8.54281806]
[1717451184328,2.65133,3771.7,3771.5,0.644]
[1717451184620,7.32,3772.0,3771.5,0.644]
[1717451184844,7.32,3772.0,3771.8,0.644]
[1717451184987,2.65111,3772.1,3771.9,0.92145071]
[1717451185181,2.65111,3772.1,3771.8,1.04355783]
[1717451185496,2.65111,3772.1,3771.9,0.92132854]
[1717451186738,2.65111,3772.1,3771.9,1.56532854]
[1717451186883,2.65111,3772.1,3772.0,0.92132854]
[1717451187078,2.65111,3772.1,3772.0,1.1734026]
[1717451187638,2.65111,3772.1,3772.0,1.17336357]
[1717451188236,2.6508,3772.5,3772.0,0.25207406]
[1717451188637,2.6508,3772.5,3772.1,0.644]
[1717451188936,2.6508,3772.5,3772.3,0.644]
[1717451190342,2.6508,3772.5,3772.3,0.96731741]
[1717451194216,2.65052,3772.9,3772.3,0.96731741]
[1717451194421,2.65052,3772.9,3772.5,0.644]
[1717451196774,2.65052,3772.9,3772.7,0.644]
[1717451198669,0.04245794,3772.8,3772.7,0.644]
[1717451199472,2.65018,3773.4,3772.7,1.96526577]
[1717451199653,2.65018,3773.4,3773.2,0.644]
[1717451200354,3.0,3774.1,3773.2,0.644]
[1717451200355,2.64989,3773.8,3773.3,1.32126577]
[1717451200546,2.64989,3773.8,3773.6,0.644]
[1717451205329,2.64989,3773.8,3773.7,0.644]
[1717451206595,2.64989,3773.8,3773.3,3.65836577]
[1717451206802,2.64989,3773.8,3773.7,0.644]
[1717451207669,7.32,3774.2,3773.7,1.96526577]
[1717451207670,9.96962,3774.2,3773.7,1.96526577]
[1717451207880,2.64962,3774.2,3774.1,0.644]
[1717451211174,2.097163,3774.2,3774.1,0.644]
[1717451212914,2.64932,3774.6,3774.1,0.644]
[1717451213222,2.64932,3774.6,3774.3,0.644]
[1717451213392,0.04341715,3774.5,3774.3,0.644]
[1717451217185,2.64932,3774.6,3774.3,0.644]
[1717451217468,2.64932,3774.6,3774.5,0.644]
[1717451217617,2.64932,3774.6,3774.2,0.29811]
[1717451217926,2.64932,3774.6,3774.5,0.644]
[1717451218526,2.69168181,3774.6,3774.5,0.644]
[1717451218779,2.64932,3774.6,3774.5,0.87033758]
[1717451218963,2.69168181,3774.6,3774.5,0.87033758]
[1717451221470,2.69168181,3774.6,3774.5,0.22633758]
[1717451221665,2.69168181,3774.6,3774.5,0.87033758]
[1717451222473,0.04236181,3774.6,3774.5,2.19160335]
[1717451222678,2.64907,3775.0,3774.5,4.52870335]
[1717451222865,2.64907,3775.0,3774.9,0.644]
[1717451223372,2.64907,3775.0,3774.6,1.7741361]
[1717451223577,2.64907,3775.0,3774.9,0.644]
[1717451224848,2.64921,3774.8,3774.2,0.29811]
[1717451225051,2.64921,3774.8,3774.7,0.644]
[1717451225434,2.64921,3774.8,3774.7,1.96526577]
[1717451225635,2.64921,3774.8,3774.2,2.64956]
[1717451225881,2.64921,3774.8,3774.3,1.32126577]
[1717451226179,2.64921,3774.8,3774.7,0.644]
[1717451228482,2.69163044,3774.8,3774.7,0.644]
[1717451231105,2.19163044,3774.8,3774.7,0.644]
[1717451240644,2.19163044,3774.8,3774.7,0.29811]
[1717451240850,2.19163044,3774.8,3774.7,0.94211]
[1717451242653,0.04242044,3774.8,3774.7,0.94211]
[1717451242849,2.64895,3775.1,3774.7,0.94211]
[1717451243189,0.04156229,3775.0,3774.9,0.644]
[1717451246281,0.04156229,3775.0,3774.7,0.29811]
[1717451246444,0.04156229,3775.0,3774.9,0.644]
[1717451249837,0.04156229,3775.0,3774.9,1.56458426]
[1717451250551,0.04156229,3775.0,3774.9,0.644]
[1717451251043,0.04156229,3775.0,3774.7,0.29811]
[1717451251349,0.04156229,3775.0,3774.9,0.644]
[1717451252509,0.04156229,3775.0,3774.9,1.56461422]
[1717451252730,0.04156229,3775.0,3774.9,0.92061422]
[1717451252932,0.04156229,3775.0,3774.9,1.56461422]
[1717451253319,0.04156229,3775.0,3774.9,1.56462336]
[1717451256570,2.31606229,3775.0,3774.9,1.56462336]
[1717451261795,2.31606229,3775.0,3774.9,0.92062336]
[1717451261995,2.64907,3774.9,3774.7,1.93673486]
[1717451262200,2.64907,3774.9,3774.8,0.92065568]
[1717451262408,2.64907,3774.9,3774.5,1.19985424]
[1717451262409,2.64928,3774.6,3774.5,1.19985424]
[1717451262736,2.64928,3774.6,3774.5,1.56473294]
[1717451263228,2.64928,3774.6,3774.5,2.94561356]
[1717451263432,2.64928,3774.6,3774.5,0.644]
[1717451263581,2.64928,3774.6,3774.5,0.92073898]
[1717451263781,2.64928,3774.6,3774.5,1.56473898]
[1717451263981,2.64928,3774.6,3774.5,2.12059322]
[1717451264211,2.64928,3774.6,3774.5,3.50170169]
[1717451264525,2.64928,3774.6,3774.5,2.94584745]
[1717451266030,2.64928,3774.6,3774.5,0.644]
[1717451266327,2.64928,3774.6,3774.5,2.94571051]
[1717451267307,2.64928,3774.6,3774.5,3.50158383]
[1717451267506,2.64928,3774.6,3774.5,2.12055752]
[1717451267736,2.64928,3774.6,3774.5,3.50158383]
[1717451267944,2.64928,3774.6,3774.5,2.12055752]
[1717451268249,2.64928,3774.6,3774.5,3.50158383]
[1717451268411,2.64928,3774.6,3774.5,2.12055752]
[1717451268738,2.64928,3774.6,3774.5,3.50158383]
[1717451268939,2.64928,3774.6,3774.5,2.12055752]
[1717451269121,2.64928,3774.6,3774.5,3.50158383]
[1717451269317,2.64928,3774.6,3774.5,2.12055752]
[1717451269518,2.64928,3774.6,3774.5,3.50158383]
[1717451269736,2.64928,3774.6,3774.5,2.12055752]
[1717451270046,2.64928,3774.6,3774.5,3.50158383]
[1717451270231,2.64928,3774.6,3774.5,1.5646842]
[1717451270536,2.64928,3774.6,3774.5,2.94571051]
[1717451272761,2.64928,3774.6,3774.5,1.5646842]
[1717451272962,2.64928,3774.6,3774.5,0.9206842]
[1717451273166,2.64928,3774.6,3774.5,0.644]
[1717451273348,2.68962086,3774.6,3774.5,0.644]
[1717451273546,2.68962086,3774.6,3774.5,1.5646842]
[1717451274620,2.68962086,3774.6,3774.5,1.56471398]
[1717451275636,2.68962086,3774.6,3774.5,0.92071398]
[1717451275869,2.68962086,3774.6,3774.5,1.56471398]
[1717451279679,2.68962086,3774.6,3774.5,1.56470309]
[1717451280183,2.68962086,3774.6,3774.5,0.92070309]
[1717451280336,2.68962086,3774.6,3774.4,0.92070309]
[1717451280681,2.68962086,3774.6,3774.5,0.92070309]
[1717451281258,2.68962086,3774.6,3774.4,0.92070309]
[1717451281865,2.68962086,3774.6,3774.3,1.19987332]
[1717451282170,2.68962086,3774.6,3774.4,0.92072699]
[1717451282537,2.68962086,3774.6,3774.5,0.92072817]
[1717451282948,2.68962086,3774.6,3774.5,1.56472817]
[1717451283696,2.68962086,3774.6,3774.5,0.92072817]
[1717451283993,2.68962086,3774.6,3774.5,0.9207131]
[1717451284774,2.68962086,3774.6,3774.4,0.644]
[1717451285089,2.68962086,3774.6,3774.5,0.92072199]
[1717451286704,2.68962086,3774.6,3774.5,1.56472199]
[1717451289142,2.68962086,3774.6,3774.5,1.56471]
[1717451291095,2.68962086,3774.6,3774.5,0.92071]
[1717451291731,2.68962086,3774.6,3774.4,1.56471]
[1717451291934,2.68962086,3774.6,3774.5,0.92071]
[1717451292793,2.68962086,3774.6,3774.4,1.56471]
[1717451292996,2.68962086,3774.6,3774.5,0.92071]
[1717451295921,2.68962086,3774.6,3774.5,2.85764832]
[1717451296824,2.68962086,3774.6,3774.5,0.92071]
[1717451297530,2.68962086,3774.6,3774.5,2.85764832]
[1717451298511,2.68962086,3774.6,3774.5,2.85755744]
[1717451299548,2.68962086,3774.6,3774.5,2.30168412]
[1717451301664,2.68962086,3774.6,3774.5,2.94568412]
[1717451301851,2.68962086,3774.6,3774.5,3.77878835]
[1717451302165,2.68962086,3774.6,3774.5,3.13478835]
[1717451302345,2.68962086,3774.6,3774.5,3.77878835]
[1717451302550,2.68962086,3774.6,3774.5,2.94568412]
[1717451303650,2.68962086,3774.6,3774.5,3.77878835]
[1717451304425,2.68962086,3774.6,3774.5,2.94568412]
[1717451304964,2.68962086,3774.6,3774.5,3.78001501]
[1717451305331,2.68962086,3774.6,3774.5,2.94568412]
[1717451305722,2.68962086,3774.6,3774.5,3.78001501]
[1717451312395,0.04034086,3774.6,3774.5,4.50280707]
[1717451312568,0.04034086,3774.6,3774.5,3.66847618]
[1717451312770,2.64908,3774.9,3774.5,3.66847618]
[1717451312975,2.64908,3774.9,3774.8,0.644]
[1717451313302,2.64908,3774.9,3774.8,2.94568412]
[1717451314069,2.64908,3774.9,3774.8,3.50177316]
[1717451314402,2.64908,3774.9,3774.8,2.12076269]
[1717451314578,2.64908,3774.9,3774.8,3.50177316]
[1717451314928,2.64908,3774.9,3774.8,2.12076269]
[1717451315060,2.64908,3774.9,3774.8,3.50177316]
[1717451315416,2.64908,3774.9,3774.8,2.12076269]
[1717451315617,2.64908,3774.9,3774.8,3.50177316]
[1717451316502,2.64908,3774.9,3774.8,2.94568412]
[1717451317078,7.32,3775.2,3774.8,2.94568412]
[1717451317403,7.32,3775.2,3775.0,0.644]
[1717451317591,7.32,3775.2,3775.1,0.92067365]
[1717451318408,7.35231122,3775.2,3775.1,0.92067365]
[1717451320394,0.03231122,3775.2,3775.0,1.19988377]
[1717451320611,0.03231122,3775.2,3775.1,0.92051474]
[1717451320799,2.64884,3775.3,3775.1,0.92051474]
[1717451320999,0.03231122,3775.2,3775.1,0.92051474]
[1717451321319,2.64884,3775.3,3775.1,0.92051474]
[1717451321622,0.03235011,3775.2,3775.1,0.92051474]
[1717451321818,0.03235011,3775.2,3775.1,1.39717549]
[1717451321996,2.64884,3775.3,3775.1,1.39717549]
[1717451322190,2.64884,3775.3,3775.2,0.92051474]
[1717451322797,2.64884,3775.3,3775.2,1.56451474]
[1717451327183,2.64884,3775.3,3775.2,0.92051474]
[1717451327395,9.8159,3775.8,3775.2,0.92051474]
[1717451327396,5.14443,3775.7,3775.2,1.86733085]
[1717451327600,2.64853,3775.7,3775.5,0.644]
[1717451332298,2.64853,3775.7,3775.5,1.96526577]
[1717451338649,2.64853,3775.7,3775.5,4.26886577]
[1717451338831,2.64853,3775.7,3775.6,0.48247495]
[1717451340845,2.64853,3775.7,3775.6,1.40284886]
[1717451341007,2.64853,3775.7,3775.6,0.48247495]
[1717451341931,0.1254788,3776.1,3775.7,2.3544]
[1717451342134,0.1254788,3776.1,3776.0,2.3544]
[1717451342318,2.2992,3777.7,3776.0,2.3544]
[1717451342319,1.58977844,3777.1,3776.8,2.789]
[1717451342521,2.64654,3778.6,3777.3,2.64734]
[1717451342723,2.64654,3778.6,3778.5,0.644]
[1717451343054,3.21864215,3778.6,3778.5,0.644]
[1717451343251,2.64654,3778.6,3778.5,0.644]
[1717451343472,2.64654,3778.6,3778.5,0.599]
[1717451344246,2.64654,3778.6,3778.5,1.92026577]
[1717451344651,2.64654,3778.6,3778.5,1.32126577]
[1717451345026,2.64654,3778.6,3778.5,1.92026577]
[1717451345637,2.6462,3779.0,3778.5,1.32126577]
[1717451345946,2.91082,3779.0,3778.7,0.599]
[1717451346351,2.91082,3779.0,3778.6,1.32126577]
[1717451346887,2.91082,3779.0,3778.7,0.599]
[1717451347254,2.91082,3779.0,3778.5,0.599]
[1717451347440,2.64635,3778.8,3778.5,0.599]
[1717451348428,0.02596611,3778.7,3778.5,0.599]
[1717451348634,0.02596611,3778.7,3778.2,0.599]
[1717451349035,2.64635,3778.8,3778.2,0.599]
[1717451349480,0.02586949,3778.7,3778.2,0.599]
[1717451349887,2.64635,3778.8,3778.2,0.599]
[1717451350395,0.02585433,3778.7,3778.2,0.599]
[1717451350680,0.02585433,3778.7,3777.7,2.6471]
[1717451350882,0.02585433,3778.7,3778.2,0.599]
[1717451352148,0.02585433,3778.7,3778.0,0.599]
[1717451352354,0.02585433,3778.7,3778.0,1.92026577]
[1717451352680,0.32218296,3778.7,3777.7,2.6471]
[1717451352836,2.58468296,3778.7,3777.9,0.599]
[1717451353043,2.64651,3778.6,3777.3,2.64737]
[1717451353249,2.64651,3778.6,3778.0,0.599]
[1717451353547,0.02538999,3778.5,3778.0,0.599]
[1717451353973,0.02538999,3778.5,3778.1,1.32126577]
[1717451354174,2.64622,3779.0,3778.1,1.77799135]
[1717451354357,0.02537358,3778.4,3778.1,1.32126577]
[1717451354581,2.64592,3779.4,3778.5,2.64653]
[1717451354746,2.64592,3779.4,3778.9,0.599]
[1717451355311,7.32,3779.6,3778.9,0.599]
[1717451355455,7.32,3779.6,3779.0,1.32126577]
[1717451355649,7.32,3779.6,3779.0,1.92026577]
[1717451355849,7.32,3779.6,3778.8,2.6463]
[1717451355850,7.82023702,3779.6,3778.8,2.6463]
[1717451356052,7.82023702,3779.6,3778.8,4.56656577]
[1717451356289,7.82023702,3779.6,3778.9,1.32126577]
[1717451357585,7.82023702,3779.6,3778.9,1.92026577]
[1717451358293,2.64566,3779.8,3778.9,1.92026577]
[1717451358603,2.64566,3779.8,3779.1,0.599]
[1717451359363,2.64566,3779.8,3778.9,1.92026577]
[1717451360404,2.64566,3779.8,3778.9,1.32126577]
[1717451361056,2.64588,3779.5,3778.9,1.32126577]
[1717451361236,2.970368,3779.5,3778.9,1.32126577]
[1717451361436,2.970368,3779.5,3778.4,2.64658]
[1717451361735,2.6463,3778.9,3778.0,2.64687]
[1717451361939,2.6463,3778.9,3778.0,1.32126577]
[1717451362249,2.6465,3778.6,3777.6,2.64717]
[1717451362564,2.6465,3778.6,3777.8,0.599]
[1717451363507,0.02579214,3778.5,3777.8,0.599]
[1717451363750,0.02579214,3778.5,3777.7,1.32126577]
[1717451363751,2.64666,3778.4,3777.7,1.32126577]
[1717451364004,2.3758,3778.3,3777.7,1.32126577]
[1717451364230,2.6468,3778.2,3777.7,1.32126577]
[1717451364713,0.02566889,3778.1,3777.7,1.32126577]
[1717451365534,2.64714,3777.7,3776.8,2.64769]
[1717451365727,2.64714,3777.7,3777.3,0.599]
[1717451365923,2.64725,3777.5,3776.4,3.57613635]
[1717451366124,2.64725,3777.5,3776.9,0.599]
[1717451366455,2.64742,3777.3,3776.9,0.599]
[1717451366606,2.64742,3777.3,3776.5,1.32126577]
[1717451366814,0.02541503,3777.2,3776.8,0.599]
[1717451367013,0.02541503,3777.2,3776.4,2.64797]
[1717451367241,2.64742,3777.3,3776.5,1.92026577]
[1717451367623,2.64742,3777.3,3776.5,0.599]
[1717451367824,2.64742,3777.3,3776.0,2.64827]
[1717451368024,2.64742,3777.3,3776.1,2.00889277]
[1717451368237,2.64764,3777.0,3775.7,2.4988]
[1717451368427,2.64764,3777.0,3775.8,3.96967577]